{"text_format":"2","workbook":"xlsx","n_sheets":3,"sheets":["Vacanze","Costi orari","Iscritti"],"not_rendered":{"charts":0,"images":0,"macros":0,"external_links":0,"defined_names":2,"comments":0,"pivot_tables":0},"unopened":[],"bounds":{"document_bytes":16777216,"sheet_cells":100000,"run_cost":"one","rows_first":2000,"rows_last":500,"rows_between":2000,"halvings":0,"cell_chars":16384,"cell_head_chars":4096},"cells_cut":0,"cells_raw":0,"read":"whole","date_system":"1900"}

{"sheet":"Vacanze","index":0,"n_rows":104,"n_cols":20,"rows_kept":104,"cut":false,"hidden":false,"merged":[[1,7,1,9],[1,10,1,12],[0,0,0,17]]}
[]
[null," ",{"$nulls":5},"CFU ",null,null,"Ore"]
["Corso di Laurea","INSEGNAMENTO","MODULO","anno","semestre","SSD MODULO","CFU Totali","Lez.","Es front"," Lab","Lez.","Es front"," Lab","Dipartimento","front","labor.","Costo complessivo lordo per eventuali contratti ad esterni","Compenso netto per eventuali contratti ad esterni","bando"]
["LT Scienze Biologiche","Lingua Inglese c.A",null,2,"I/II","L-LIN/12",4,4,null,null,32,null,null,null,"C","A",{"$f":"((SUMIF('Costi orari'!A$2:A$6,O4,'Costi orari'!F$2:F$6)*K4)+((SUMIF('Costi orari'!A$2:A$6,P4,'Costi orari'!F$2:F$6)*L4)+((SUMIF('Costi orari'!A$2:A$6,P4,'Costi orari'!F$2:F$6)*M4))))","v":1222.848},{"$f":"((SUMIF('Costi orari'!A$2:A$6,O4,'Costi orari'!E$2:E$6)*K4)+((SUMIF('Costi orari'!A$2:A$6,P4,'Costi orari'!E$2:E$6)*L4)+((SUMIF('Costi orari'!A$2:A$6,P4,'Costi orari'!E$2:E$6)*M4))))","v":968},1,2]
["LT Scienze Biologiche","Lingua Inglese c.B",null,2,"I/II","L-LIN/12",4,4,null,null,32,null,null,null,"C","A",{"$f":"((SUMIF('Costi orari'!A$2:A$6,O5,'Costi orari'!F$2:F$6)*K5)+((SUMIF('Costi orari'!A$2:A$6,P5,'Costi orari'!F$2:F$6)*L5)+((SUMIF('Costi orari'!A$2:A$6,P5,'Costi orari'!F$2:F$6)*M5))))","v":1222.848},{"$f":"((SUMIF('Costi orari'!A$2:A$6,O5,'Costi orari'!E$2:E$6)*K5)+((SUMIF('Costi orari'!A$2:A$6,P5,'Costi orari'!E$2:E$6)*L5)+((SUMIF('Costi orari'!A$2:A$6,P5,'Costi orari'!E$2:E$6)*M5))))","v":968},1,2]
["LT Scienze Biologiche","Fisica","Fisica per Biologia c.B",1,"II","FIS/07",6,5,1,null,40,15,null,null,"C","A",{"$f":"((SUMIF('Costi orari'!A$2:A$6,O6,'Costi orari'!F$2:F$6)*K6)+((SUMIF('Costi orari'!A$2:A$6,P6,'Costi orari'!F$2:F$6)*L6)+((SUMIF('Costi orari'!A$2:A$6,P6,'Costi orari'!F$2:F$6)*M6))))","v":2002.26},{"$f":"((SUMIF('Costi orari'!A$2:A$6,O6,'Costi orari'!E$2:E$6)*K6)+((SUMIF('Costi orari'!A$2:A$6,P6,'Costi orari'!E$2:E$6)*L6)+((SUMIF('Costi orari'!A$2:A$6,P6,'Costi orari'!E$2:E$6)*M6))))","v":1585},1,2]
["LT Scienze Biologiche","Chimica I","Chimica Generale c.B",null,"I","CHIM/03",{"$nulls":12},1]
["LT Scienze Biologiche","Igiene c. A+B",null,null,"II","MED/42",6,{"$nulls":11},1]
["LM Biologia Ambientale","Zoologia Applicata",null,1,"I","BIO/05",6,5,1,null,40,15,null,null,"C","A",{"$f":"((SUMIF('Costi orari'!A$2:A$6,O9,'Costi orari'!F$2:F$6)*K9)+((SUMIF('Costi orari'!A$2:A$6,P9,'Costi orari'!F$2:F$6)*L9)+((SUMIF('Costi orari'!A$2:A$6,P9,'Costi orari'!F$2:F$6)*M9))))","v":2002.26},{"$f":"((SUMIF('Costi orari'!A$2:A$6,O9,'Costi orari'!E$2:E$6)*K9)+((SUMIF('Costi orari'!A$2:A$6,P9,'Costi orari'!E$2:E$6)*L9)+((SUMIF('Costi orari'!A$2:A$6,P9,'Costi orari'!E$2:E$6)*M9))))","v":1585},1,2]
["LM Biologia Ambientale","Igiene Ambientale",null,null,"I","MED/42",4,{"$nulls":11},1]
["LM Biologia Ambientale","Ecofisiologia Vegetale",null,null,"II","BIO/04",6,{"$nulls":11},1]
["LM Scienze Biosanitarie","Parassitologia",null,1,"I","BIO/05",4,4,null,null,32,null,null,null,"C","A",{"$f":"((SUMIF('Costi orari'!A$2:A$6,O12,'Costi orari'!F$2:F$6)*K12)+((SUMIF('Costi orari'!A$2:A$6,P12,'Costi orari'!F$2:F$6)*L12)+((SUMIF('Costi orari'!A$2:A$6,P12,'Costi orari'!F$2:F$6)*M12))))","v":1222.848},{"$f":"((SUMIF('Costi orari'!A$2:A$6,O12,'Costi orari'!E$2:E$6)*K12)+((SUMIF('Costi orari'!A$2:A$6,P12,'Costi orari'!E$2:E$6)*L12)+((SUMIF('Costi orari'!A$2:A$6,P12,'Costi orari'!E$2:E$6)*M12))))","v":968},null,2]
["LM Scienze Biosanitarie","Microbiologia Clinica",null,null,"II","MED/07",4,{"$nulls":11},1]
["LT Chimica","LINGUA INGLESE",null,2,"I","L-LIN/12",3,null,3,null,null,45,null,null,"C","A",{"$f":"((SUMIF('Costi orari'!A$2:A$6,O14,'Costi orari'!F$2:F$6)*K14)+((SUMIF('Costi orari'!A$2:A$6,P14,'Costi orari'!F$2:F$6)*L14)+((SUMIF('Costi orari'!A$2:A$6,P14,'Costi orari'!F$2:F$6)*M14))))","v":1421.1},{"$f":"((SUMIF('Costi orari'!A$2:A$6,O14,'Costi orari'!E$2:E$6)*K14)+((SUMIF('Costi orari'!A$2:A$6,P14,'Costi orari'!E$2:E$6)*L14)+((SUMIF('Costi orari'!A$2:A$6,P14,'Costi orari'!E$2:E$6)*M14))))","v":1125},1,2]
["LT Chimica","Eserc.. di Chimica Analitica (I corso)",null,1,"II","CHIM/01",6,3,1,2,24,15,30,null,"C","A",{"$f":"((SUMIF('Costi orari'!A$2:A$6,O15,'Costi orari'!F$2:F$6)*K15)+((SUMIF('Costi orari'!A$2:A$6,P15,'Costi orari'!F$2:F$6)*L15)+((SUMIF('Costi orari'!A$2:A$6,P15,'Costi orari'!F$2:F$6)*M15))))","v":2338.2359999999999},{"$f":"((SUMIF('Costi orari'!A$2:A$6,O15,'Costi orari'!E$2:E$6)*K15)+((SUMIF('Costi orari'!A$2:A$6,P15,'Costi orari'!E$2:E$6)*L15)+((SUMIF('Costi orari'!A$2:A$6,P15,'Costi orari'!E$2:E$6)*M15))))","v":1851},1,2]
["LT Chimica","CHIMICA INORGANICA (III CORSO) ",null,null,"II","CHIM/03",6,{"$nulls":11},1]
["LT Fisica","ISTITUZIONI DI FISICA NUCLEARE E SUBNUCLLEARE ","MOD. B: FISICA SUBNUCLEARE",null,"II","FIS/04",4,{"$nulls":11},1]
["LM Fisica","FISICA DEI LASER",null,null,"I","FIS/03",6,{"$nulls":11},1]
["LM Fisica","LABORATORIO DI FISICA DELL'INTERAZIONE RADIAZIONE-MATERIA",null,null,"I","FIS/01",6,{"$nulls":11},1]
["LM Fisica","FISICA DEI RAGGI COSMICI",null,null,"I","FIS/01",6,{"$nulls":11},1]
["LM Fisica","TECNICHE DI SIMULAZIONE MOLECOLARE",null,null,"I","FIS/01",6,{"$nulls":11},1]
["LM Fisica","STRUTTURA DELLA MATERIA",null,1,"I","FIS/03",6,5,1,null,40,15,null,null,"C","A",{"$f":"((SUMIF('Costi orari'!A$2:A$6,O22,'Costi orari'!F$2:F$6)*K22)+((SUMIF('Costi orari'!A$2:A$6,P22,'Costi orari'!F$2:F$6)*L22)+((SUMIF('Costi orari'!A$2:A$6,P22,'Costi orari'!F$2:F$6)*M22))))","v":2002.26},{"$f":"((SUMIF('Costi orari'!A$2:A$6,O22,'Costi orari'!E$2:E$6)*K22)+((SUMIF('Costi orari'!A$2:A$6,P22,'Costi orari'!E$2:E$6)*L22)+((SUMIF('Costi orari'!A$2:A$6,P22,'Costi orari'!E$2:E$6)*M22))))","v":1585},1,2]
["LM Fisica","FISICA MEDICA ","MOD. A: ELABORAZIONE DI SEGNALI E IMMAGINI",1,"II","FIS/01",6,5,1,null,40,15,null,null,"C","A",{"$f":"((SUMIF('Costi orari'!A$2:A$6,O23,'Costi orari'!F$2:F$6)*K23)+((SUMIF('Costi orari'!A$2:A$6,P23,'Costi orari'!F$2:F$6)*L23)+((SUMIF('Costi orari'!A$2:A$6,P23,'Costi orari'!F$2:F$6)*M23))))","v":2002.26},{"$f":"((SUMIF('Costi orari'!A$2:A$6,O23,'Costi orari'!E$2:E$6)*K23)+((SUMIF('Costi orari'!A$2:A$6,P23,'Costi orari'!E$2:E$6)*L23)+((SUMIF('Costi orari'!A$2:A$6,P23,'Costi orari'!E$2:E$6)*M23))))","v":1585},1,2]
["LM Fisica","OTTICA MODERNA ","MOD. A: OTTICA NON LINEARE E SPETTROSCOPIA",1,"II","FIS/03",6,5,1,null,40,15,null,null,"C","A",{"$f":"((SUMIF('Costi orari'!A$2:A$6,O24,'Costi orari'!F$2:F$6)*K24)+((SUMIF('Costi orari'!A$2:A$6,P24,'Costi orari'!F$2:F$6)*L24)+((SUMIF('Costi orari'!A$2:A$6,P24,'Costi orari'!F$2:F$6)*M24))))","v":2002.26},{"$f":"((SUMIF('Costi orari'!A$2:A$6,O24,'Costi orari'!E$2:E$6)*K24)+((SUMIF('Costi orari'!A$2:A$6,P24,'Costi orari'!E$2:E$6)*L24)+((SUMIF('Costi orari'!A$2:A$6,P24,'Costi orari'!E$2:E$6)*M24))))","v":1585},1,2]
["LM Fisica","OTTICA MODERNA ","MOD.B OPTOELETTRONICA E NANOTECNOLOGIE",1,"II","FIS/03",6,5,1,null,40,15,null,null,"C","A",{"$f":"((SUMIF('Costi orari'!A$2:A$6,O25,'Costi orari'!F$2:F$6)*K25)+((SUMIF('Costi orari'!A$2:A$6,P25,'Costi orari'!F$2:F$6)*L25)+((SUMIF('Costi orari'!A$2:A$6,P25,'Costi orari'!F$2:F$6)*M25))))","v":2002.26},{"$f":"((SUMIF('Costi orari'!A$2:A$6,O25,'Costi orari'!E$2:E$6)*K25)+((SUMIF('Costi orari'!A$2:A$6,P25,'Costi orari'!E$2:E$6)*L25)+((SUMIF('Costi orari'!A$2:A$6,P25,'Costi orari'!E$2:E$6)*M25))))","v":1585},1,2]
["LT Informatica","Gestione della Conoscenza di Impresa",null,3,"I","ING-INF/05",9,7,null,2,56,null,30,null,"D","B",{"$f":"((SUMIF('Costi orari'!A$2:A$6,O26,'Costi orari'!F$2:F$6)*K26)+((SUMIF('Costi orari'!A$2:A$6,P26,'Costi orari'!F$2:F$6)*L26)+((SUMIF('Costi orari'!A$2:A$6,P26,'Costi orari'!F$2:F$6)*M26))))","v":3693.2999999999997},{"$f":"((SUMIF('Costi orari'!A$2:A$6,O26,'Costi orari'!E$2:E$6)*K26)+((SUMIF('Costi orari'!A$2:A$6,P26,'Costi orari'!E$2:E$6)*L26)+((SUMIF('Costi orari'!A$2:A$6,P26,'Costi orari'!E$2:E$6)*M26))))","v":3091.5},1,2]
["LT Informatica","Fondamenti dell'Informatica",null,null,"I","INF-01",{"$nulls":12},1]
["LT Informatica","Matematica discreta",null,null,"I","MAT / 03",{"$nulls":12},1]
["LT Informatica","Ingegneria della Conoscenza e Sistemi Esperti",null,null,"II","ING-INF / 05",{"$nulls":12},1]
["LT Informatica","Interazione Uomo-Macchina",null,null,"II","INF / 01",{"$nulls":12},1]
["LT Informatica","Modelli e Metodi per la Sicurezza delle Applicazioni",null,3,"II","INF / 01",6,4,null,2,32,null,30,null,"D","B",{"$f":"((SUMIF('Costi orari'!A$2:A$6,O31,'Costi orari'!F$2:F$6)*K31)+((SUMIF('Costi orari'!A$2:A$6,P31,'Costi orari'!F$2:F$6)*L31)+((SUMIF('Costi orari'!A$2:A$6,P31,'Costi orari'!F$2:F$6)*M31))))","v":2601.7799999999997},{"$f":"((SUMIF('Costi orari'!A$2:A$6,O31,'Costi orari'!E$2:E$6)*K31)+((SUMIF('Costi orari'!A$2:A$6,P31,'Costi orari'!E$2:E$6)*L31)+((SUMIF('Costi orari'!A$2:A$6,P31,'Costi orari'!E$2:E$6)*M31))))","v":2155.5},1,2]
["LT Informatica","Metodi Avanzati di Programmazione + lab.",null,null,"II","INF / 01",{"$nulls":12},1]
["LT Informatica e Comunicazione Digitale","Informatica giuridica",null,null,"II","IUS/20",6,{"$nulls":11},1]
["LT Informatica e Comunicazione Digitale","Tecnologie informatiche per la formazione a distanza",null,null,"II","INF/01",6,{"$nulls":11},1]
["LT Informatica e Comunicazione Digitale","Reti di Calcolatori e Comunicazione Digitale",null,null,"II","INF / 01",{"$nulls":12},1]
["LT Informatica e Comunicazione Digitale","Agenti distribuiti",null,null,"II","INF/01",{"$nulls":12},1]
["LT Informatica e Comunicazione Digitale","Complementi di linguaggi di Programmazione",null,null,"II","INF/01",{"$nulls":12},1]
["LT Informatica e Comunicazione Digitale","Editoria multimediale",null,null,"II","INF/01",{"$nulls":12},1]
["LT Informatica e Comunicazione Digitale","Sistemi Intelligenti per la comunicazione digitale",null,null,"II","INF/01",{"$nulls":12},1]
["LT Informatica e tecnologia per la produzione del software","Progettazione di basi di dati con modelli di nuova generazione",null,3,null,"INF/01",6,4,2,null,32,30,null,null,"C","A",{"$f":"((SUMIF('Costi orari'!A$2:A$6,O40,'Costi orari'!F$2:F$6)*K40)+((SUMIF('Costi orari'!A$2:A$6,P40,'Costi orari'!F$2:F$6)*L40)+((SUMIF('Costi orari'!A$2:A$6,P40,'Costi orari'!F$2:F$6)*M40))))","v":2170.248},{"$f":"((SUMIF('Costi orari'!A$2:A$6,O40,'Costi orari'!E$2:E$6)*K40)+((SUMIF('Costi orari'!A$2:A$6,P40,'Costi orari'!E$2:E$6)*L40)+((SUMIF('Costi orari'!A$2:A$6,P40,'Costi orari'!E$2:E$6)*M40))))","v":1718},null,2]
["LT Informatica e tecnologia per la produzione del software","Programmazione per il Web + LAB.",null,null,"I","INF / 01",{"$nulls":12},1]
["LT Informatica e tecnologia per la produzione del software","Gestione della conoscenza di impresa",null,null,"I","ING-INF / 05",{"$nulls":12},1]
["LT Informatica e tecnologia per la produzione del software","Economia della Innovazione",null,null,"I","SECS-P/08",6,{"$nulls":11},1]
["LT Informatica Brindisi","Lingua Inglese",null,3,"I","L-LIN/12",6,4,2,null,32,30,null,null,"C","A",null,null,1,2]
["LT Informatica Brindisi","Architettura degli elaboratori + lab.",null,1,"I","INF/01",9,7,null,2,56,null,30,null,"C","A",null,null,1,2]
["LT Informatica Brindisi","Modelli di Valutazione e Miglioramento del SW",null,3,"I","ING-INF/05",9,7,null,2,56,null,30,null,"C","A",null,null,1,2]
["LT Informatica Brindisi","Programmazione + Lab.",null,null,"I","INF / 01",{"$nulls":12},1]
["LT Informatica Brindisi","Matematica Discreta",null,1,"I","MAT/03",9,7,null,2,56,null,30,"Matematica",{"$nulls":4},1]
["LT Informatica Brindisi","Fondamenti di Fisica",null,2,"II","FIS/07",6,4,null,2,32,null,30,null,"C","A",null,null,1,2]
["LT Informatica Brindisi","Sistemi di elaborazione intelligenti",null,3,"II","ING-INF/05",9,7,null,2,56,null,30,null,"C","A",null,null,1,2]
["LT Informatica Brindisi","Laboratorio di Informatica",null,1,"II","INF/01",6,4,null,2,32,null,30,null,"C","A",null,null,1,2]
["LT Informatica Brindisi","Metodi avanzati di Programmazione + Lab",null,2,"II","ING-INF/05",9,7,null,2,56,null,30,null,"C","A",null,null,1,2]
["LT Informatica Brindisi","Analisi Matematica",null,null,"II","MAT / 05",{"$nulls":12},1]
["LT Informatica Brindisi","Linguaggi di Programmazione + Lab.",null,null,"II","INF / 01",{"$nulls":12},1]
["LT Informatica Brindisi","Interazione Uomo-Macchina",null,null,"II","INF / 01",{"$nulls":12},1]
["LT Informatica Brindisi","Reti di Calcolatori + Lab.",null,3,"II","ING-INF / 05",9,7,null,2,56,null,30,null,"C","A",null,null,1,2]
["LM Informatica","Interfaccie intelligenti",null,null,"I",{"$nulls":13},1]
["LM Informatica","Basi di Dati II",null,null,"I","INF / 01",{"$nulls":12},1]
["LM Informatica","Progettazione e produzione di contenuti digitali",null,null,"I","INF / 01",{"$nulls":12},1]
["LM Informatica","Modelli per i sistemi distribuiti cooperativi",null,null,"I","INF/01",{"$nulls":12},1]
["LM Informatica","Intelligenza Artificiale ","(mod. B)",null,"II","ING-INF/05",{"$nulls":12},1]
["LT Matematica","FISICA 2                                 ",null,2,"II","FIS/01",9,4.5,4.5,null,36,36,null,"Fisica",{"$nulls":4},1]
["LT Matematica","GEOMETRIA 2",null,1,"II","MAT/03",8,6,2,null,48,30,null,"Matematica",{"$nulls":4},1]
["LT Matematica","GEOMETRIA DIFFERENZIALE",null,null,"II","MAT/03",7,{"$nulls":11},1]
["LT Matematica","LINGUA INGLESE 1 ","corso A",1,"II","L-LIN/12",3,3,null,null,24,null,null,null,"C","A",{"$f":"((SUMIF('Costi orari'!A$2:A$6,O65,'Costi orari'!F$2:F$6)*K65)+((SUMIF('Costi orari'!A$2:A$6,P65,'Costi orari'!F$2:F$6)*L65)+((SUMIF('Costi orari'!A$2:A$6,P65,'Costi orari'!F$2:F$6)*M65))))","v":917.13599999999997},{"$f":"((SUMIF('Costi orari'!A$2:A$6,O65,'Costi orari'!E$2:E$6)*K65)+((SUMIF('Costi orari'!A$2:A$6,P65,'Costi orari'!E$2:E$6)*L65)+((SUMIF('Costi orari'!A$2:A$6,P65,'Costi orari'!E$2:E$6)*M65))))","v":726},1,2]
["LT Matematica","LINGUA INGLESE 1 ","corso B",1,"II","L-LIN/12",3,3,null,null,24,null,null,null,"C","A",{"$f":"((SUMIF('Costi orari'!A$2:A$6,O66,'Costi orari'!F$2:F$6)*K66)+((SUMIF('Costi orari'!A$2:A$6,P66,'Costi orari'!F$2:F$6)*L66)+((SUMIF('Costi orari'!A$2:A$6,P66,'Costi orari'!F$2:F$6)*M66))))","v":917.13599999999997},{"$f":"((SUMIF('Costi orari'!A$2:A$6,O66,'Costi orari'!E$2:E$6)*K66)+((SUMIF('Costi orari'!A$2:A$6,P66,'Costi orari'!E$2:E$6)*L66)+((SUMIF('Costi orari'!A$2:A$6,P66,'Costi orari'!E$2:E$6)*M66))))","v":726},1,2]
["LM Matematica","ISTITUZIONI DI ECONOMIA MATEMATICA",null,null,"I","SECS-P/01",7,{"$nulls":11},1]
["LM Matematica","EQUAZIONI DI EVOLUZIONE",null,2,"II","MAT/05",7,6.5,0.5,null,52,8,null,null,"C","A",{"$f":"((SUMIF('Costi orari'!A$2:A$6,O68,'Costi orari'!F$2:F$6)*K68)+((SUMIF('Costi orari'!A$2:A$6,P68,'Costi orari'!F$2:F$6)*L68)+((SUMIF('Costi orari'!A$2:A$6,P68,'Costi orari'!F$2:F$6)*M68))))","v":2239.768},{"$f":"((SUMIF('Costi orari'!A$2:A$6,O68,'Costi orari'!E$2:E$6)*K68)+((SUMIF('Costi orari'!A$2:A$6,P68,'Costi orari'!E$2:E$6)*L68)+((SUMIF('Costi orari'!A$2:A$6,P68,'Costi orari'!E$2:E$6)*M68))))","v":1773},1,2]
["LM Matematica","LINGUA INGLESE 2",null,1,"II","L-LIN/12",3,3,null,null,24,null,null,null,"C","A",{"$f":"((SUMIF('Costi orari'!A$2:A$6,O69,'Costi orari'!F$2:F$6)*K69)+((SUMIF('Costi orari'!A$2:A$6,P69,'Costi orari'!F$2:F$6)*L69)+((SUMIF('Costi orari'!A$2:A$6,P69,'Costi orari'!F$2:F$6)*M69))))","v":917.13599999999997},{"$f":"((SUMIF('Costi orari'!A$2:A$6,O69,'Costi orari'!E$2:E$6)*K69)+((SUMIF('Costi orari'!A$2:A$6,P69,'Costi orari'!E$2:E$6)*L69)+((SUMIF('Costi orari'!A$2:A$6,P69,'Costi orari'!E$2:E$6)*M69))))","v":726},1,2]
["LM Matematica","METODI ANALITICI IN FINANZA",null,null,"II","MAT/05",7,{"$nulls":11},1]
["LT Scienza dei Materiali","MATERIALI ORGANICI PER FOTONICA ED ELETTRONICA",null,null,"I","CHIM/06-05",5,{"$nulls":11},1]
["LT Scienza dei Materiali","MATERIALI E DISPOSITIVI OPTOELETTRONICI",null,3,"I","FIS/03",4,4,null,null,32,null,null,null,"C","A",{"$f":"((SUMIF('Costi orari'!A$2:A$6,O72,'Costi orari'!F$2:F$6)*K72)+((SUMIF('Costi orari'!A$2:A$6,P72,'Costi orari'!F$2:F$6)*L72)+((SUMIF('Costi orari'!A$2:A$6,P72,'Costi orari'!F$2:F$6)*M72))))","v":1222.848},{"$f":"((SUMIF('Costi orari'!A$2:A$6,O72,'Costi orari'!E$2:E$6)*K72)+((SUMIF('Costi orari'!A$2:A$6,P72,'Costi orari'!E$2:E$6)*L72)+((SUMIF('Costi orari'!A$2:A$6,P72,'Costi orari'!E$2:E$6)*M72))))","v":968},1,2]
["LT Scienza dei Materiali","INGLESE",null,1,"I","L-LIN/12",4,4,null,null,32,null,null,null,"C","A",{"$f":"((SUMIF('Costi orari'!A$2:A$6,O73,'Costi orari'!F$2:F$6)*K73)+((SUMIF('Costi orari'!A$2:A$6,P73,'Costi orari'!F$2:F$6)*L73)+((SUMIF('Costi orari'!A$2:A$6,P73,'Costi orari'!F$2:F$6)*M73))))","v":1222.848},{"$f":"((SUMIF('Costi orari'!A$2:A$6,O73,'Costi orari'!E$2:E$6)*K73)+((SUMIF('Costi orari'!A$2:A$6,P73,'Costi orari'!E$2:E$6)*L73)+((SUMIF('Costi orari'!A$2:A$6,P73,'Costi orari'!E$2:E$6)*M73))))","v":968},1,2]
["LT Scienza dei Materiali","FISICA DEI MATERIALI CON LABORATORIO",null,2,"II","FIS/03",6,4,2,null,32,30,null,null,"C","A",{"$f":"((SUMIF('Costi orari'!A$2:A$6,O74,'Costi orari'!F$2:F$6)*K74)+((SUMIF('Costi orari'!A$2:A$6,P74,'Costi orari'!F$2:F$6)*L74)+((SUMIF('Costi orari'!A$2:A$6,P74,'Costi orari'!F$2:F$6)*M74))))","v":2170.248},{"$f":"((SUMIF('Costi orari'!A$2:A$6,O74,'Costi orari'!E$2:E$6)*K74)+((SUMIF('Costi orari'!A$2:A$6,P74,'Costi orari'!E$2:E$6)*L74)+((SUMIF('Costi orari'!A$2:A$6,P74,'Costi orari'!E$2:E$6)*M74))))","v":1718},1,2]
["LM Scienza e Tecnologia dei Materiali","CHIMICA DEI MATERIALI ORGANICI",null,null,"I","CHIM/06",8,{"$nulls":11},1]
["LM Scienza e Tecnologia dei Materiali","INGEGNERIA DEI MATERIALI ",null,1,"II","ING-IND/22",8,8,null,null,64,null,null,null,"C","A",{"$f":"((SUMIF('Costi orari'!A$2:A$6,O76,'Costi orari'!F$2:F$6)*K76)+((SUMIF('Costi orari'!A$2:A$6,P76,'Costi orari'!F$2:F$6)*L76)+((SUMIF('Costi orari'!A$2:A$6,P76,'Costi orari'!F$2:F$6)*M76))))","v":2445.6959999999999},{"$f":"((SUMIF('Costi orari'!A$2:A$6,O76,'Costi orari'!E$2:E$6)*K76)+((SUMIF('Costi orari'!A$2:A$6,P76,'Costi orari'!E$2:E$6)*L76)+((SUMIF('Costi orari'!A$2:A$6,P76,'Costi orari'!E$2:E$6)*M76))))","v":1936},1,2]
["LM Scienza e Tecnologia dei Materiali","OTTICA NON LINEARE E SPETTROSCOPIA",null,1,"II","FIS/01-03",6,5,1,null,40,15,null,null,"C","A",{"$f":"((SUMIF('Costi orari'!A$2:A$6,O77,'Costi orari'!F$2:F$6)*K77)+((SUMIF('Costi orari'!A$2:A$6,P77,'Costi orari'!F$2:F$6)*L77)+((SUMIF('Costi orari'!A$2:A$6,P77,'Costi orari'!F$2:F$6)*M77))))","v":2002.26},{"$f":"((SUMIF('Costi orari'!A$2:A$6,O77,'Costi orari'!E$2:E$6)*K77)+((SUMIF('Costi orari'!A$2:A$6,P77,'Costi orari'!E$2:E$6)*L77)+((SUMIF('Costi orari'!A$2:A$6,P77,'Costi orari'!E$2:E$6)*M77))))","v":1585},1,2]
["LM Scienza e Tecnologia dei Materiali","FISICA DEI DISPOSITIVI II",null,1,"II","FIS/01-03",6,4,2,null,32,30,null,null,"C","A",{"$f":"((SUMIF('Costi orari'!A$2:A$6,O78,'Costi orari'!F$2:F$6)*K78)+((SUMIF('Costi orari'!A$2:A$6,P78,'Costi orari'!F$2:F$6)*L78)+((SUMIF('Costi orari'!A$2:A$6,P78,'Costi orari'!F$2:F$6)*M78))))","v":2170.248},{"$f":"((SUMIF('Costi orari'!A$2:A$6,O78,'Costi orari'!E$2:E$6)*K78)+((SUMIF('Costi orari'!A$2:A$6,P78,'Costi orari'!E$2:E$6)*L78)+((SUMIF('Costi orari'!A$2:A$6,P78,'Costi orari'!E$2:E$6)*M78))))","v":1718},1,2]
["LT Scienze e Tecnologie per i Beni Culturali","Storia dell'arte I e II","Storia dell'arte I mod",null,"I","L-ART/01",6,{"$nulls":11},1]
["LT Scienze e Tecnologie per i Beni Culturali","Storia dell'arte I e II","Storia dell'arte II mod",null,"I","L-ART/02",6,{"$nulls":11},1]
["LT Scienze e Tecnologie per i Beni Culturali","Inglese",null,2,"I","L-LIN/12",6,4,2,null,32,30,null,null,"C","A",{"$f":"((SUMIF('Costi orari'!A$2:A$6,O81,'Costi orari'!F$2:F$6)*K81)+((SUMIF('Costi orari'!A$2:A$6,P81,'Costi orari'!F$2:F$6)*L81)+((SUMIF('Costi orari'!A$2:A$6,P81,'Costi orari'!F$2:F$6)*M81))))","v":2170.248},{"$f":"((SUMIF('Costi orari'!A$2:A$6,O81,'Costi orari'!E$2:E$6)*K81)+((SUMIF('Costi orari'!A$2:A$6,P81,'Costi orari'!E$2:E$6)*L81)+((SUMIF('Costi orari'!A$2:A$6,P81,'Costi orari'!E$2:E$6)*M81))))","v":1718},1,2]
["LT Scienze e Tecnologie per i Beni Culturali","Archeologia"," I modulo",1,"II","L-ANT/07 ",6,4,2,null,32,30,null,null,"C","A",{"$f":"((SUMIF('Costi orari'!A$2:A$6,O82,'Costi orari'!F$2:F$6)*K82)+((SUMIF('Costi orari'!A$2:A$6,P82,'Costi orari'!F$2:F$6)*L82)+((SUMIF('Costi orari'!A$2:A$6,P82,'Costi orari'!F$2:F$6)*M82))))","v":2170.248},{"$f":"((SUMIF('Costi orari'!A$2:A$6,O82,'Costi orari'!E$2:E$6)*K82)+((SUMIF('Costi orari'!A$2:A$6,P82,'Costi orari'!E$2:E$6)*L82)+((SUMIF('Costi orari'!A$2:A$6,P82,'Costi orari'!E$2:E$6)*M82))))","v":1718},1,2]
["LT Scienze e Tecnologie per i Beni Culturali","Archeologia ","II modulo",1,"II","L-ANT/08",6,4,2,null,32,30,null,null,"C","A",{"$f":"((SUMIF('Costi orari'!A$2:A$6,O83,'Costi orari'!F$2:F$6)*K83)+((SUMIF('Costi orari'!A$2:A$6,P83,'Costi orari'!F$2:F$6)*L83)+((SUMIF('Costi orari'!A$2:A$6,P83,'Costi orari'!F$2:F$6)*M83))))","v":2170.248},{"$f":"((SUMIF('Costi orari'!A$2:A$6,O83,'Costi orari'!E$2:E$6)*K83)+((SUMIF('Costi orari'!A$2:A$6,P83,'Costi orari'!E$2:E$6)*L83)+((SUMIF('Costi orari'!A$2:A$6,P83,'Costi orari'!E$2:E$6)*M83))))","v":1718},1,2]
["LT Scienze e Tecnologie per i Beni Culturali","Storia e tecnica del restauro",null,3,"II","ICAR/19",6,6,null,null,48,null,null,null,"C","A",{"$f":"((SUMIF('Costi orari'!A$2:A$6,O84,'Costi orari'!F$2:F$6)*K84)+((SUMIF('Costi orari'!A$2:A$6,P84,'Costi orari'!F$2:F$6)*L84)+((SUMIF('Costi orari'!A$2:A$6,P84,'Costi orari'!F$2:F$6)*M84))))","v":1834.2719999999999},{"$f":"((SUMIF('Costi orari'!A$2:A$6,O84,'Costi orari'!E$2:E$6)*K84)+((SUMIF('Costi orari'!A$2:A$6,P84,'Costi orari'!E$2:E$6)*L84)+((SUMIF('Costi orari'!A$2:A$6,P84,'Costi orari'!E$2:E$6)*M84))))","v":1452},1,2]
["LT Scienze e Tecnologie per i Beni Culturali","Microbiologia generale",null,2,"II","BIO/19",6,4,2,null,32,30,null,null,"C","A",{"$f":"((SUMIF('Costi orari'!A$2:A$6,O85,'Costi orari'!F$2:F$6)*K85)+((SUMIF('Costi orari'!A$2:A$6,P85,'Costi orari'!F$2:F$6)*L85)+((SUMIF('Costi orari'!A$2:A$6,P85,'Costi orari'!F$2:F$6)*M85))))","v":2170.248},{"$f":"((SUMIF('Costi orari'!A$2:A$6,O85,'Costi orari'!E$2:E$6)*K85)+((SUMIF('Costi orari'!A$2:A$6,P85,'Costi orari'!E$2:E$6)*L85)+((SUMIF('Costi orari'!A$2:A$6,P85,'Costi orari'!E$2:E$6)*M85))))","v":1718},1,2]
["LT Scienze e Tecnologie per i Beni Culturali","Legislazione dei beni culturali",null,null,"II","IUS/01",4,{"$nulls":11},1]
["LM Scienza per la Diagnostica e Conservazione dei Beni Culturali","Biologia vegetale nel restauro",null,1,"I","BIO/02",6,4,2,null,32,30,null,null,"C","A",{"$f":"((SUMIF('Costi orari'!A$2:A$6,O87,'Costi orari'!F$2:F$6)*K87)+((SUMIF('Costi orari'!A$2:A$6,P87,'Costi orari'!F$2:F$6)*L87)+((SUMIF('Costi orari'!A$2:A$6,P87,'Costi orari'!F$2:F$6)*M87))))","v":2170.248},{"$f":"((SUMIF('Costi orari'!A$2:A$6,O87,'Costi orari'!E$2:E$6)*K87)+((SUMIF('Costi orari'!A$2:A$6,P87,'Costi orari'!E$2:E$6)*L87)+((SUMIF('Costi orari'!A$2:A$6,P87,'Costi orari'!E$2:E$6)*M87))))","v":1718},1,2]
["LM Scienza per la Diagnostica e Conservazione dei Beni Culturali","Microbiolgia applicata",null,2,"I","BIO/19",6,4,2,null,32,30,null,null,"C","A",{"$f":"((SUMIF('Costi orari'!A$2:A$6,O88,'Costi orari'!F$2:F$6)*K88)+((SUMIF('Costi orari'!A$2:A$6,P88,'Costi orari'!F$2:F$6)*L88)+((SUMIF('Costi orari'!A$2:A$6,P88,'Costi orari'!F$2:F$6)*M88))))","v":2170.248},{"$f":"((SUMIF('Costi orari'!A$2:A$6,O88,'Costi orari'!E$2:E$6)*K88)+((SUMIF('Costi orari'!A$2:A$6,P88,'Costi orari'!E$2:E$6)*L88)+((SUMIF('Costi orari'!A$2:A$6,P88,'Costi orari'!E$2:E$6)*M88))))","v":1718},1,2]
["LM Scienza per la Diagnostica e Conservazione dei Beni Culturali","Restauro",null,2,"I","ICAR/19",6,4,2,null,32,30,null,null,"C","A",{"$f":"((SUMIF('Costi orari'!A$2:A$6,O89,'Costi orari'!F$2:F$6)*K89)+((SUMIF('Costi orari'!A$2:A$6,P89,'Costi orari'!F$2:F$6)*L89)+((SUMIF('Costi orari'!A$2:A$6,P89,'Costi orari'!F$2:F$6)*M89))))","v":2170.248},{"$f":"((SUMIF('Costi orari'!A$2:A$6,O89,'Costi orari'!E$2:E$6)*K89)+((SUMIF('Costi orari'!A$2:A$6,P89,'Costi orari'!E$2:E$6)*L89)+((SUMIF('Costi orari'!A$2:A$6,P89,'Costi orari'!E$2:E$6)*M89))))","v":1718},1,2]
["LM Scienza per la Diagnostica e Conservazione dei Beni Culturali","Disegno e rilievo",null,1,"II","ICAR/17",9,6,3,null,48,45,null,null,"C","A",{"$f":"((SUMIF('Costi orari'!A$2:A$6,O90,'Costi orari'!F$2:F$6)*K90)+((SUMIF('Costi orari'!A$2:A$6,P90,'Costi orari'!F$2:F$6)*L90)+((SUMIF('Costi orari'!A$2:A$6,P90,'Costi orari'!F$2:F$6)*M90))))","v":3255.3719999999998},{"$f":"((SUMIF('Costi orari'!A$2:A$6,O90,'Costi orari'!E$2:E$6)*K90)+((SUMIF('Costi orari'!A$2:A$6,P90,'Costi orari'!E$2:E$6)*L90)+((SUMIF('Costi orari'!A$2:A$6,P90,'Costi orari'!E$2:E$6)*M90))))","v":2577},1,2]
["LT Scienze della Natura","Entomologia",null,2,"I","AGR/11",6,6,null,null,48,null,null,null,"C","A",{"$f":"((SUMIF('Costi orari'!A$2:A$6,O91,'Costi orari'!F$2:F$6)*K91)+((SUMIF('Costi orari'!A$2:A$6,P91,'Costi orari'!F$2:F$6)*L91)+((SUMIF('Costi orari'!A$2:A$6,P91,'Costi orari'!F$2:F$6)*M91))))","v":1834.2719999999999},{"$f":"((SUMIF('Costi orari'!A$2:A$6,O91,'Costi orari'!E$2:E$6)*K91)+((SUMIF('Costi orari'!A$2:A$6,P91,'Costi orari'!E$2:E$6)*L91)+((SUMIF('Costi orari'!A$2:A$6,P91,'Costi orari'!E$2:E$6)*M91))))","v":1452},1,2]
["LT Scienze della Natura","Zoologia generale e sistematica ","Zoologia generale e sistematica ",2,"II","BIO/05",null,7,null,null,56,null,null,null,"C","A",{"$f":"((SUMIF('Costi orari'!A$2:A$6,O92,'Costi orari'!F$2:F$6)*K92)+((SUMIF('Costi orari'!A$2:A$6,P92,'Costi orari'!F$2:F$6)*L92)+((SUMIF('Costi orari'!A$2:A$6,P92,'Costi orari'!F$2:F$6)*M92))))","v":2139.9839999999999},{"$f":"((SUMIF('Costi orari'!A$2:A$6,O92,'Costi orari'!E$2:E$6)*K92)+((SUMIF('Costi orari'!A$2:A$6,P92,'Costi orari'!E$2:E$6)*L92)+((SUMIF('Costi orari'!A$2:A$6,P92,'Costi orari'!E$2:E$6)*M92))))","v":1694},null,2]
["LT Scienze della Natura","Zoologia generale e sistematica ","Laboratorio di Zoologia generale e sistematica ",2,"II","BIO/05",null,null,2,null,null,30,null,null,"C","A",{"$f":"((SUMIF('Costi orari'!A$2:A$6,O93,'Costi orari'!F$2:F$6)*K93)+((SUMIF('Costi orari'!A$2:A$6,P93,'Costi orari'!F$2:F$6)*L93)+((SUMIF('Costi orari'!A$2:A$6,P93,'Costi orari'!F$2:F$6)*M93))))","v":947.4},{"$f":"((SUMIF('Costi orari'!A$2:A$6,O93,'Costi orari'!E$2:E$6)*K93)+((SUMIF('Costi orari'!A$2:A$6,P93,'Costi orari'!E$2:E$6)*L93)+((SUMIF('Costi orari'!A$2:A$6,P93,'Costi orari'!E$2:E$6)*M93))))","v":750},null,2]
["LT Scienze della Natura","Laboratorio linguistico",null,1,"I","L-LIN/12",3,2,1,null,16,15,null,null,"D","B",{"$f":"((SUMIF('Costi orari'!A$2:A$6,O94,'Costi orari'!F$2:F$6)*K94)+((SUMIF('Costi orari'!A$2:A$6,P94,'Costi orari'!F$2:F$6)*L94)+((SUMIF('Costi orari'!A$2:A$6,P94,'Costi orari'!F$2:F$6)*M94))))","v":1300.8899999999999},{"$f":"((SUMIF('Costi orari'!A$2:A$6,O94,'Costi orari'!E$2:E$6)*K94)+((SUMIF('Costi orari'!A$2:A$6,P94,'Costi orari'!E$2:E$6)*L94)+((SUMIF('Costi orari'!A$2:A$6,P94,'Costi orari'!E$2:E$6)*M94))))","v":1077.75},1,2]
["LT Scienze della Natura","Botanica generale",null,null,"II","BIO/01",8,{"$nulls":11},1]
["LM Scienze della Natura","Inglese",null,1,"I","L-LIN/12",3,3,null,null,24,null,null,null,"C","A",{"$f":"((SUMIF('Costi orari'!A$2:A$6,O96,'Costi orari'!F$2:F$6)*K96)+((SUMIF('Costi orari'!A$2:A$6,P96,'Costi orari'!F$2:F$6)*L96)+((SUMIF('Costi orari'!A$2:A$6,P96,'Costi orari'!F$2:F$6)*M96))))","v":917.13599999999997},{"$f":"((SUMIF('Costi orari'!A$2:A$6,O96,'Costi orari'!E$2:E$6)*K96)+((SUMIF('Costi orari'!A$2:A$6,P96,'Costi orari'!E$2:E$6)*L96)+((SUMIF('Costi orari'!A$2:A$6,P96,'Costi orari'!E$2:E$6)*M96))))","v":726},1,2]
["LM Scienze della Natura","Ecologia Marina e protezione dell'ambiente marino",null,2,"I","BIO/07",7,6,1,null,48,15,null,null,"C","A",{"$f":"((SUMIF('Costi orari'!A$2:A$6,O97,'Costi orari'!F$2:F$6)*K97)+((SUMIF('Costi orari'!A$2:A$6,P97,'Costi orari'!F$2:F$6)*L97)+((SUMIF('Costi orari'!A$2:A$6,P97,'Costi orari'!F$2:F$6)*M97))))","v":2307.9719999999998},{"$f":"((SUMIF('Costi orari'!A$2:A$6,O97,'Costi orari'!E$2:E$6)*K97)+((SUMIF('Costi orari'!A$2:A$6,P97,'Costi orari'!E$2:E$6)*L97)+((SUMIF('Costi orari'!A$2:A$6,P97,'Costi orari'!E$2:E$6)*M97))))","v":1827},1,2]
["LM Scienze della Natura","Conservazione della fauna",null,2,"I","BIO/05",6,6,null,null,48,null,null,null,"C","A",{"$f":"((SUMIF('Costi orari'!A$2:A$6,O98,'Costi orari'!F$2:F$6)*K98)+((SUMIF('Costi orari'!A$2:A$6,P98,'Costi orari'!F$2:F$6)*L98)+((SUMIF('Costi orari'!A$2:A$6,P98,'Costi orari'!F$2:F$6)*M98))))","v":1834.2719999999999},{"$f":"((SUMIF('Costi orari'!A$2:A$6,O98,'Costi orari'!E$2:E$6)*K98)+((SUMIF('Costi orari'!A$2:A$6,P98,'Costi orari'!E$2:E$6)*L98)+((SUMIF('Costi orari'!A$2:A$6,P98,'Costi orari'!E$2:E$6)*M98))))","v":1452},1,2]
["LM Scienze della Natura","Genetica di popolazione",null,1,"II","AGR/07",6,6,null,null,48,null,null,null,"C","A",{"$f":"((SUMIF('Costi orari'!A$2:A$6,O99,'Costi orari'!F$2:F$6)*K99)+((SUMIF('Costi orari'!A$2:A$6,P99,'Costi orari'!F$2:F$6)*L99)+((SUMIF('Costi orari'!A$2:A$6,P99,'Costi orari'!F$2:F$6)*M99))))","v":1834.2719999999999},{"$f":"((SUMIF('Costi orari'!A$2:A$6,O99,'Costi orari'!E$2:E$6)*K99)+((SUMIF('Costi orari'!A$2:A$6,P99,'Costi orari'!E$2:E$6)*L99)+((SUMIF('Costi orari'!A$2:A$6,P99,'Costi orari'!E$2:E$6)*M99))))","v":1452},1,2]
["LT Scienze Geologiche","Geologia tecnica",null,3,"I","GEO/05",6,5,1,null,40,15,null,null,"C","A",{"$f":"((SUMIF('Costi orari'!A$2:A$6,O100,'Costi orari'!F$2:F$6)*K100)+((SUMIF('Costi orari'!A$2:A$6,P100,'Costi orari'!F$2:F$6)*L100)+((SUMIF('Costi orari'!A$2:A$6,P100,'Costi orari'!F$2:F$6)*M100))))","v":2002.26},{"$f":"((SUMIF('Costi orari'!A$2:A$6,O100,'Costi orari'!E$2:E$6)*K100)+((SUMIF('Costi orari'!A$2:A$6,P100,'Costi orari'!E$2:E$6)*L100)+((SUMIF('Costi orari'!A$2:A$6,P100,'Costi orari'!E$2:E$6)*M100))))","v":1585},1,2]
["LT Scienze Geologiche","Inglese",null,1,"I","L-LIN/12",4,4,null,null,32,null,null,null,"C","A",{"$f":"((SUMIF('Costi orari'!A$2:A$6,O101,'Costi orari'!F$2:F$6)*K101)+((SUMIF('Costi orari'!A$2:A$6,P101,'Costi orari'!F$2:F$6)*L101)+((SUMIF('Costi orari'!A$2:A$6,P101,'Costi orari'!F$2:F$6)*M101))))","v":1222.848},{"$f":"((SUMIF('Costi orari'!A$2:A$6,O101,'Costi orari'!E$2:E$6)*K101)+((SUMIF('Costi orari'!A$2:A$6,P101,'Costi orari'!E$2:E$6)*L101)+((SUMIF('Costi orari'!A$2:A$6,P101,'Costi orari'!E$2:E$6)*M101))))","v":968},1,2]
["LM Scienze Geologiche e Geofisiche","Metodi Matematico-numerici per la Geofisica",null,2,"I","FIS/02-07",10,7,3,null,56,45,null,null,"C","A",{"$f":"((SUMIF('Costi orari'!A$2:A$6,O102,'Costi orari'!F$2:F$6)*K102)+((SUMIF('Costi orari'!A$2:A$6,P102,'Costi orari'!F$2:F$6)*L102)+((SUMIF('Costi orari'!A$2:A$6,P102,'Costi orari'!F$2:F$6)*M102))))","v":3561.0839999999998},{"$f":"((SUMIF('Costi orari'!A$2:A$6,O102,'Costi orari'!E$2:E$6)*K102)+((SUMIF('Costi orari'!A$2:A$6,P102,'Costi orari'!E$2:E$6)*L102)+((SUMIF('Costi orari'!A$2:A$6,P102,'Costi orari'!E$2:E$6)*M102))))","v":2819},1,2]
["LM Scienze Geologiche e Geofisiche","Meccanica dei Geosistemi",null,1,"II","GEO/10",7,6,1,null,48,15,null,null,"C","A",{"$f":"((SUMIF('Costi orari'!A$2:A$6,O103,'Costi orari'!F$2:F$6)*K103)+((SUMIF('Costi orari'!A$2:A$6,P103,'Costi orari'!F$2:F$6)*L103)+((SUMIF('Costi orari'!A$2:A$6,P103,'Costi orari'!F$2:F$6)*M103))))","v":2307.9719999999998},{"$f":"((SUMIF('Costi orari'!A$2:A$6,O103,'Costi orari'!E$2:E$6)*K103)+((SUMIF('Costi orari'!A$2:A$6,P103,'Costi orari'!E$2:E$6)*L103)+((SUMIF('Costi orari'!A$2:A$6,P103,'Costi orari'!E$2:E$6)*M103))))","v":1827},1,2]
["SCIENZE AMBIENTALI","Fisica 1",null,1,"I","FIS/01",6,4,2,0,36,30,0,2292.84,1815,null,{"$f":"34.74*(K104+L104+M104)","v":2292.84}]

{"sheet":"Costi orari","index":1,"n_rows":6,"n_cols":6,"rows_kept":6,"cut":false,"hidden":false,"merged":[]}
[null,"Base Netto","Base Lordo","tipologia corsi","costo orario Netto","costo orario Lordo"]
["A",25,31.58,"corsi laboratoriali con numerosità fino al 60% della massima",{"$f":"B2","v":25},{"$f":"C2","v":31.58}]
["B",27.5,34.74,"corsi laboratoriali con numerosità superiore al 60% della massima",{"$f":"B3+(B3*0.1)","v":30.25},{"$f":"C3+(C3*0.1)","v":38.213999999999999}]
["C",27.5,34.74,"corsi frontali con numerosità fino al 60% della massima",{"$f":"B4+(B4*0.1)","v":30.25},{"$f":"C4+(C4*0.1)","v":38.213999999999999}]
["D",30,37.9,"corsi frontali con numerosità superiore al 60% della massima",{"$f":"B5+(B5*0.3)","v":39},{"$f":"C5+(C5*0.2)","v":45.48}]
["E",32.5,41.05,"corsi post-lauream",{"$f":"B6+(B6*0.2)","v":39},{"$f":"C6+(C6*0.2)","v":49.26}]

{"sheet":"Iscritti","index":2,"n_rows":25,"n_cols":11,"rows_kept":25,"cut":false,"hidden":false,"merged":[[0,5,0,7],[0,8,0,10]]}
[{"$nulls":5},"frontali",null,null,"laboratoriali"]
[null,1,2,3,"Numerosità",1,2,3,1,2,3]
["LT Scienze Biologiche",183,145,237,150,{"$f":"IF(B3>$E3+1,\"D\",\"C\")","v":"D"},{"$f":"IF(C3>$E3+1,\"D\",\"C\")","v":"C"},"D",{"$f":"IF(B3>$E3+1,\"B\",\"A\")","v":"B"},{"$f":"IF(C3>$E3+1,\"B\",\"A\")","v":"A"},{"$f":"IF(D3>$E3+1,\"B\",\"A\")","v":"B"}]
["LT Chimica",55,62,84,75,{"$f":"IF(B4>$E4+1,\"D\",\"C\")","v":"C"},{"$f":"IF(C4>$E4+1,\"D\",\"C\")","v":"C"},{"$f":"IF(D4>$E4+1,\"D\",\"C\")","v":"D"},{"$f":"IF(B4>$E4+1,\"B\",\"A\")","v":"A"},{"$f":"IF(C4>$E4+1,\"B\",\"A\")","v":"A"},{"$f":"IF(D4>$E4+1,\"B\",\"A\")","v":"B"}]
["LT Fisica",104,53,77,75,"D","C","D","B","A","B"]
["LT Scienza dei Materiali",52,36,37,75,"C","C","C","A","A","A"]
["LT Informatica",186,84,198,150,"D","C","D","B","A","B"]
["LT Informatica Brindisi",75,33,78,150,"C","C","C","A","A","A"]
["LT Informatica e Comunicazione Digitale",102,74,131,150,"C","C","C","A","A","A"]
["LT Informatica e tecnologia per la produzione del software",145,71,196,150,"C","C","D","A","A","B"]
["LT Scienze della Natura",175,28,26,75,"D","C","C","B","A","A"]
["LT Scienze Geologiche",67,36,34,75,"C","C","C","A","A","A"]
["LT Matematica",74,56,89,75,"C","C","D","A","A","B"]
["LT Scienze e Tecnologie per i Beni Culturali",20,12,21,150,"C","C","C","A","A","A"]
["LM Scienza per la Diagnostica e Conservazione dei Beni Culturali",8,26,null,100,"C","C","C","A","A","A"]
["LM Fisica",20,43,null,60,"C","C","C","A","A","A"]
["LM Informatica",70,141,null,80,"C","D","C","A","B","A"]
["LM Matematica",18,60,null,60,"C","C","C","A","A","A"]
["LM Scienze della Natura",11,10,null,80,"C","C","C","A","A","A"]
["LM Biologia Ambientale",10,21,null,80,"C","C","C","A","A","A"]
["LM Biologia Cellulare e Molecolare",27,54,null,80,"C","C","C","A","A","A"]
["LM Scienze Biosanitarie",76,101,null,80,"C","D","C","A","B","A"]
["LM Scienza e Tecnologia dei Materiali",9,17,null,80,"C","C","C","A","A","A"]
["LM Scienze Geologiche e Geofisiche",14,25,null,60,"C","C","C","A","A","A"]
["LM Scienze Chimiche",33,43,null,60,"C","C","C","A","A","A"]